fUST/lending_fUST_20260201
["ID","MTS","AMOUNT","RATE_DAILY","PERIOD"]
[404169420,1769895902558,300.0,0.00013272,2]
[404169421,1769895903380,1200.0,0.00013272,2]
[404169443,1769895934617,293.760923,0.00037359,120]
[404169444,1769895950683,180.11046574,0.00013273,2]
[404169445,1769895955103,283.343254,0.00037359,40]
[404169446,1769895961591,178.9600823,0.00037359,120]
[404169447,1769895962503,300.0,0.00013272,2]
[404169468,1769895990251,170.83593844,0.00037359,120]
[404169469,1769895990313,163.43516923,0.00037359,120]
[404169470,1769895990375,396.48362178,0.00037359,120]
[404169471,1769895990656,396.48362178,0.00037359,120]
[404169472,1769895990719,163.43516923,0.00037359,120]
[404169473,1769895991030,163.43516923,0.00037359,120]
[404169474,1769895991092,396.48362178,0.00037359,120]
[404169475,1769895991381,163.43516923,0.00037359,120]
[404169476,1769895991459,396.48362178,0.00037359,120]
[404169477,1769895991744,163.43516923,0.00037359,120]
[404169478,1769895991848,396.48362178,0.00037359,120]
[404169479,1769895992135,163.43516923,0.00037359,120]
[404169480,1769895992226,396.48362178,0.00037359,120]
[404169481,1769895992616,163.43516923,0.00037359,120]
[404169482,1769895992713,396.48362178,0.00037359,120]
[404169483,1769895993071,396.48362178,0.00037359,120]
[404169484,1769895993449,396.48362178,0.00037359,120]
[404169485,1769895993803,396.48362178,0.00037359,120]
[404169486,1769895994150,396.48362178,0.00037359,120]
[404169487,1769895994600,396.48362178,0.00037359,120]
[404169488,1769895995057,396.48362178,0.00037359,120]
[404169489,1769895995484,396.48362178,0.00037359,120]
[404169490,1769895995748,312.85401581,0.00037359,120]
[404169491,1769895996116,312.85401581,0.00037359,120]
[404169492,1769895996631,312.85401581,0.00037359,120]
[404169493,1769896022822,300.0,0.00013272,2]
[404169506,1769896035140,-98.87668307,0.00013273,2]
[404169507,1769896035160,-500.0,0.00013273,2]
[404169508,1769896035181,-553.74222866,0.00013273,2]
[404169509,1769896035202,-23.98752037,0.00013273,2]
[404169513,1769896082486,300.0,0.00013272,2]
[404169515,1769896110188,198.24181089,0.00037359,120]
[404169516,1769896118004,6228.88769388,0.00013173,2]
[404169517,1769896118031,10000.01,0.00013173,2]
[404169518,1769896130416,-183.82753549,0.00013173,2]
[404169519,1769896131529,150.0,0.00023636,120]
[404169520,1769896131923,150.0,0.00026168,120]
[404169521,1769896132311,191.67,0.00028701,120]
[404169522,1769896134316,-179.99131428,0.00013173,2]
[404169523,1769896135812,665.41,0.00012329,2]
[404169524,1769896136457,-291.70274715,0.00013173,2]
[404169525,1769896138583,-196.52806959,0.00013173,2]
[404169526,1769896140465,41006.75276585,0.00013041,2]
[404169527,1769896142495,-401.46391742,0.00013173,2]
[404169528,1769896144915,-300.0,0.00013172,2]
[404169529,1769896145067,-407.1317054,0.00013173,2]
[404169530,1769896146898,3720.09895712,0.000131,2]
[404169531,1769896149132,-15123.55698,0.00013173,2]
[404169532,1769896149757,-183.35028729,0.00013173,2]
[404169533,1769896151884,-158.38206772,0.00013173,2]
[404169534,1769896153840,150.0,0.0002366,120]
[404169535,1769896154191,150.0,0.00026195,120]
[404169536,1769896154538,183.62,0.0002873,120]
[404169537,1769896154668,-152.96623305,0.00013173,2]
[404169538,1769896158472,-191.91845614,0.00013173,2]
[404169539,1769896161353,-159.78106884,0.00013173,2]
[404169540,1769896166726,-266.62065992,0.00013173,2]
[404169541,1769896168273,-297.05694231,0.00013173,2]
[404169542,1769896169910,2931.71587053,0.00013041,2]
[404169543,1769896171972,-180.11046574,0.00013173,2]
[404169544,1769896173237,150.0,0.00023614,120]
[404169545,1769896173583,150.0,0.00026144,120]
[404169546,1769896173974,175.71,0.00028674,120]
[404169547,1769896175033,-183.2402496,0.00013173,2]
[404169548,1769896176890,-374.9877516,0.00013173,2]
[404169549,1769896178315,-320.00868572,0.00013173,2]
[404169550,1769896181930,-233.37934008,0.00013173,2]
[404169551,1769896184472,-566.55983912,0.00013173,2]
[404169552,1769896188707,-4133.45713993,0.00013173,2]
[404169553,1769896191664,-10000.01,0.00013173,2]
[404169554,1769896191877,-152.80228227,0.00013173,2]
[404169555,1769896193154,150.0,0.0002361,120]
[404169556,1769896193562,150.0,0.0002614,120]
[404169557,1769896193905,167.92,0.00028669,120]
[404169558,1769896193938,-214.10871006,0.00013173,2]
[404169559,1769896195850,-10000.01,0.00013173,2]
[404169560,1769896195941,-245.66018267,0.00013173,2]
[404169561,1769896198434,151.0,0.00013,2]
[404169562,1769896198699,-319.89701713,0.00013173,2]
[404169563,1769896198771,151.0,0.000127,2]
[404169564,1769896199088,151.0,0.000125,2]
[404169565,1769896199407,151.0,0.000123,2]
[404169566,1769896199736,151.0,0.000121,2]
[404169567,1769896200051,151.0,0.000119,2]
[404169568,1769896200384,151.0,0.000117,2]
[404169569,1769896200664,-10000.01,0.00013173,2]
[404169570,1769896200781,151.0,0.000114,2]
[404169571,1769896201158,151.0,0.000112,2]
[404169572,1769896201467,151.0,0.00011,2]
[404169573,1769896201786,-300.0,0.00013172,2]
[404169574,1769896201813,-19.83142265,0.00013173,2]
[404169575,1769896203178,850.019999,0.00030137,120]
[404169576,1769896203789,-300.0,0.00013172,2]
[404169577,1769896203811,-55.3793753,0.00013172,2]
[404169578,1769896207279,-198.48815033,0.00013172,2]
[404169579,1769896209350,-46.13247437,0.00013172,2]
[404169580,1769896209373,-180.43935781,0.00013172,2]
[404169581,1769896210872,-119.56064219,0.00013172,2]
[404169582,1769896210896,-255.3793753,0.00013172,2]
[404169583,1769896211985,-944.6206247,0.00013172,2]
[404169584,1769896212025,-8110.7687506,0.00013173,2]
[404169585,1769896213307,150.0,0.00023651,120]
[404169586,1769896213659,150.0,0.00026185,120]
[404169587,1769896214008,160.27,0.00028719,120]
[404169588,1769896214989,-300.0,0.00013173,2]
[404169589,1769896216587,-217.98082238,0.00013173,2]
[404169590,1769896217307,21778.4668394,0.00037355,120]
[404169591,1769896218664,-360.33220671,0.00013173,2]
[404169592,1769896222441,-216.41650435,0.00013173,2]
[404169593,1769896225092,-161.50746654,0.00013173,2]
[404169594,1769896228493,-441.43152877,0.00013173,2]
[404169595,1769896230380,198.24181088,0.00037355,120]
[404169596,1769896230584,-204.69093765,0.00013173,2]
[404169638,1769896232265,-352.01140376,0.00013173,2]
[404169640,1769896232278,-2344.53,0.00013173,2]
[404169642,1769896232289,-24047.00000001,0.00013173,2]
[404169725,1769896234108,150.0,0.0002365,120]
[404169726,1769896234531,-411.80630237,0.00013172,2]
[404169727,1769896235064,150.0,0.00026184,120]
[404169728,1769896235516,152.74,0.00028718,120]
[404169741,1769896238368,-88.19369763,0.00013172,2]
[404169743,1769896238378,-601.28317409,0.00013172,2]
[404169745,1769896238387,-1388.07254328,0.00013173,2]
[404169747,1769896238398,-20107.00053835,0.00013173,2]
[404169749,1769896238410,-17719.33305966,0.00013173,2]
[404169752,1769896238426,-2252661.67547289,0.00013173,2]
[404169754,1769896238435,-487.0,0.00013173,2]
[404169756,1769896238444,-750.15,0.00013173,2]
[404169758,1769896238453,-476.01247963,0.00013273,2]
[404169760,1769896238462,-610.42597811,0.00013273,2]
[404169762,1769896238472,-500.0,0.00013273,2]
[404169763,1769896238482,-500.0,0.00013273,2]
[404169765,1769896238492,-500.41302693,0.00013273,2]
[404169767,1769896238502,-500.0,0.00013273,2]
[404169769,1769896238511,-500.0,0.00013273,2]
[404169771,1769896238520,-501.52215443,0.00013273,2]
[404169773,1769896238529,-289.84480928,0.00013273,2]
[404169775,1769896238538,-500.0,0.00013273,2]
[404169777,1769896238547,-500.0,0.00013273,2]
[404169779,1769896238556,-500.0,0.00013273,2]
[404169781,1769896238566,-500.0,0.00013273,2]
[404169782,1769896238576,-501.82473873,0.00013273,2]
[404169783,1769896238586,-500.0,0.00013273,2]
[404169784,1769896238596,-500.0,0.00013273,2]
[404169785,1769896238605,-500.0,0.00013273,2]
[404169786,1769896238615,-500.0,0.00013273,2]
[404169787,1769896238624,-500.6294263,0.00013273,2]
[404169788,1769896238633,-500.90147035,0.00013273,2]
[404169789,1769896238642,-500.0,0.00013273,2]
[404169790,1769896238652,-500.0,0.00013273,2]
[404169791,1769896238661,-501.0748173,0.00013273,2]
[404169792,1769896238671,-500.0,0.00013273,2]
[404169793,1769896238681,-500.0,0.00013273,2]
[404169794,1769896238690,-500.0,0.00013273,2]
[404169795,1769896238700,-500.0,0.00013273,2]
[404169796,1769896238709,-500.0,0.00013273,2]
[404169797,1769896238719,-500.0,0.00013273,2]
[404169798,1769896238728,-159.78106884,0.00013273,2]
[404169799,1769896238738,-500.52410142,0.00013273,2]
[404169800,1769896238747,-500.0,0.00013273,2]
[404169801,1769896238757,-500.0,0.00013273,2]
[404169802,1769896238766,-500.0,0.00013273,2]
[404169803,1769896238776,-42843.63995504,0.00013273,2]
[404169804,1769896238785,-300.0,0.00013493,2]
[404169805,1769896238795,-300.0,0.00013673,2]
[404169806,1769896238804,-500.0,0.00013698,2]
[404169807,1769896238814,-160.27425271,0.00013699,2]
[404169808,1769896238824,-500.0,0.00013699,2]
[404169809,1769896238834,-500.0,0.00013699,2]
[404169810,1769896238844,-299.9295039,0.00013699,2]
[404169811,1769896238855,-500.0,0.00013699,2]
[404169812,1769896238865,-500.0,0.00013699,2]
[404169813,1769896238875,-500.0,0.00013699,2]
[404169814,1769896238885,-500.0,0.00013699,2]
[404169815,1769896238894,-500.0,0.00013699,2]
[404169816,1769896238904,-613.41777659,0.00013699,2]
[404169817,1769896238916,-507.6640978,0.00013699,2]
[404169818,1769896238935,-500.0,0.00013699,2]
[404169819,1769896238947,-500.0,0.00013699,2]
[404169820,1769896238960,-302.47063203,0.00013699,2]
[404169821,1769896238970,-158.88062448,0.00013699,2]
[404169822,1769896238981,-500.0,0.00013699,2]
[404169823,1769896238993,-500.0,0.00013699,2]
[404169824,1769896239003,-526.71254202,0.00013699,2]
[404169825,1769896239013,-500.6948387,0.00013699,2]
[404169826,1769896239022,-500.0,0.00013699,2]
[404169827,1769896239033,-500.0,0.00013699,2]
[404169828,1769896239043,-500.0,0.00013699,2]
[404169829,1769896239052,-500.0,0.00013699,2]
[404169830,1769896239063,-650.0,0.00013699,2]
[404169831,1769896239072,-459.28481038,0.00013699,2]
[404169832,1769896239084,-500.0,0.00013699,2]
[404169833,1769896239095,-500.0,0.00013699,2]
[404169834,1769896239105,-152.58064698,0.00013699,2]
[404169835,1769896239118,-605.01551444,0.00013699,2]
[404169836,1769896239127,-225.98244329,0.00013699,2]
[404169837,1769896239136,-500.32406849,0.00013699,2]
[404169838,1769896239146,-500.0,0.00013699,2]
[404169839,1769896239155,-500.0,0.00013699,2]
[404169840,1769896239164,-500.0,0.00013699,2]
[404169841,1769896239174,-500.0,0.00013699,2]
[404169842,1769896239183,-500.0,0.00013699,2]
[404169843,1769896239192,-500.0,0.00013699,2]
[404169844,1769896239202,-500.0,0.00013699,2]
[404169845,1769896239211,-500.0,0.00013699,2]
[404169846,1769896239221,-500.0,0.00013699,2]
[404169847,1769896239231,-526.86363123,0.00013699,2]
[404169848,1769896239240,-500.18246026,0.00013699,2]
[404169849,1769896239249,-359.282343,0.00013699,2]
[404169850,1769896239258,-500.0,0.00013821,2]
[404169851,1769896239267,-500.0,0.00013821,2]
[404169852,1769896239276,-1000.0,0.00013821,2]
[404169853,1769896239287,-1000.0,0.00013821,2]
[404169854,1769896239296,-1000.0,0.00013821,2]
[404169855,1769896239306,-500.0,0.00013821,2]
[404169856,1769896239315,-693.60793859,0.00013821,2]
[404169857,1769896239324,-1000.0,0.00013821,2]
[404169858,1769896239334,-1000.0,0.00013821,2]
[404169859,1769896239343,-1000.0,0.00013821,2]
[404169860,1769896239352,-339.12095846,0.00013821,2]
[404169861,1769896239362,-153.94851911,0.00013821,2]
[404169862,1769896239372,-504.27176123,0.00013821,2]
[404169863,1769896239381,-500.0,0.00013821,2]
[404169864,1769896239390,-500.0,0.00013821,2]
[404169865,1769896239399,-1000.0,0.00013821,2]
[404169866,1769896239408,-158.96639932,0.00013821,2]
[404169867,1769896239417,-449.36895108,0.00013821,2]
[404169868,1769896239427,-214.49419012,0.00013821,2]
[404169869,1769896239437,-500.42745581,0.00013821,2]
[404169870,1769896239447,-600.0,0.00014221,2]
[404169871,1769896239456,-1000.0,0.00014247,2]
[404169872,1769896239466,-212.28615271,0.00014247,2]
[404169873,1769896239477,-215.23784729,0.00014247,2]
[404169874,1769896239489,-500.0,0.00014247,2]
[404169875,1769896239498,-501.06198753,0.00014247,2]
[404169876,1769896239507,-1000.0,0.00014247,2]
[404169877,1769896239517,-1117.40899688,0.00014247,2]
[404169878,1769896239527,-1000.0,0.00014247,2]
[404169879,1769896239536,-500.0,0.00014247,2]
[404169880,1769896239546,-1000.0,0.00014247,2]
[404169881,1769896239556,-1500.0,0.00014368,2]
[404169882,1769896239566,-1500.0,0.00014368,2]
[404169883,1769896239575,-1146.9712107,0.00014368,2]
[404169884,1769896239584,-1500.0,0.00014368,2]
[404169885,1769896239593,-1500.0,0.00014368,2]
[404169886,1769896239603,-583.06096223,0.00014368,2]
[404169887,1769896239612,-420.0,0.00014442,2]
[404169888,1769896239625,-1680.0,0.00014489,2]
[404169889,1769896239635,-300.0,0.00014768,2]
[404169890,1769896239646,-500.0,0.00014794,2]
[404169891,1769896239656,-500.0,0.00014794,2]
[404169892,1769896239665,-500.0,0.00014794,2]
[404169893,1769896239675,-1500.0,0.00014795,2]
[404169894,1769896239693,-528.69886424,0.00014795,2]
[404169895,1769896239711,-501.21829847,0.00014795,2]
[404169896,1769896239721,-163.85721114,0.00014916,2]
[404169897,1769896239730,-1004.36727375,0.00014916,2]
[404169898,1769896239744,-2000.0,0.00014916,2]
[404169899,1769896239762,-300.0,0.00015214,2]
[404169900,1769896239774,-300.0,0.00015214,2]
[404169901,1769896239783,-300.0,0.00015214,2]
[404169902,1769896239792,-300.0,0.00015214,2]
[404169903,1769896239802,-300.0,0.00015214,2]
[404169904,1769896239812,-300.0,0.00015214,2]
[404169905,1769896239821,-300.0,0.00015214,2]
[404169906,1769896239831,-300.0,0.00015214,2]
[404169907,1769896239840,-300.0,0.00015214,2]
[404169908,1769896239850,-300.0,0.00015214,2]
[404169909,1769896239859,-300.0,0.00015214,2]
[404169910,1769896239869,-300.0,0.00015214,2]
[404169911,1769896239879,-300.0,0.00015214,2]
[404169912,1769896239888,-300.0,0.00015214,2]
[404169913,1769896239900,-300.0,0.00015214,2]
[404169914,1769896239912,-10000.0,0.00015342,2]
[404169915,1769896239922,-515.45185894,0.00015342,2]
[404169916,1769896239933,-10000.0,0.00015442,2]
[404169917,1769896239943,-1529.95906274,0.00015464,2]
[404169918,1769896239955,-10000.0,0.00015542,2]
[404169919,1769896239966,-2568.31,0.00015559,2]
[404169920,1769896239977,-5757.89,0.00015642,2]
[404169921,1769896239988,-600.0,0.00015773,2]
[404169922,1769896239999,-587.0,0.00015836,2]
[404169923,1769896240009,-2351.0,0.00015938,2]
[404169924,1769896240020,-489.75059953,0.00016438,2]
[404169925,1769896240030,-4774.3797583,0.00017005,2]
[404169926,1769896240039,-720.0,0.0001735,2]
[404169927,1769896240050,-823.0,0.00017363,2]
[404169928,1769896240059,-3292.0,0.00017531,2]
[404169929,1769896240069,-250.0,0.00017742,2]
[404169931,1769896240078,-3717.14,0.00018082,3]
[404169934,1769896240087,-303.10001603,0.000189,2]
[404169935,1769896240097,-1152.0,0.00019039,2]
[404169937,1769896240106,-864.0,0.00019085,2]
[404169939,1769896240116,-303.10001605,0.00019089,2]
[404169940,1769896240126,-178.92208645,0.00019127,2]
[404169941,1769896240137,-157.43607312,0.00019127,2]
[404169942,1769896240146,-247.13,0.000192,2]
[404169944,1769896240156,-1803.73,0.000192,2]
[404169945,1769896240165,-169.17,0.000192,2]
[404169947,1769896240175,-157.61,0.000192,2]
[404169949,1769896240184,-157.86980075,0.00019659,2]
[404169951,1769896240194,-1613.0,0.00020875,2]
[404169953,1769896240204,-1000.0,0.00020993,2]
[404169954,1769896240214,-168.0,0.00021477,2]
[404169956,1769896240223,-168.0,0.00021849,2]
[404169957,1769896240235,-168.0,0.00022054,2]
[404169958,1769896240246,-168.0,0.00022288,2]
[404169959,1769896240255,-168.0,0.00022308,2]
[404169960,1769896240266,-168.0,0.00022432,2]
[404169961,1769896240276,-168.0,0.00022457,2]
[404169962,1769896240286,-168.0,0.00022529,2]
[404169963,1769896240296,-168.0,0.00022815,2]
[404169964,1769896240306,-168.0,0.00022847,2]
[404169965,1769896240316,-1400.0,0.00022889,2]
[404169966,1769896240326,-197.0,0.00022932,8]
[404169967,1769896240339,-168.0,0.0002318,2]
[404169968,1769896240350,-5542.0,0.00023267,2]
[404169969,1769896240359,-155.88,0.000233,7]
[404169970,1769896240368,-168.0,0.00023364,2]
[404169971,1769896240379,-151.0,0.000234,5]
[404169972,1769896240462,-151.0,0.000234,6]
[404169973,1769896240472,-151.0,0.000234,5]
[404169974,1769896240482,-6040.64808441,0.00023402,2]
[404169975,1769896240492,-687.2220717,0.00023419,2]
[404169976,1769896240502,-168.0,0.00023511,2]
[404169978,1769896240512,-281.9340519,0.00023748,2]
[404169980,1769896240521,-4752.087041,0.0002393,2]
[404169982,1769896240531,-520.61540906,0.00024,2]
[404169983,1769896240541,-151.0,0.000243,6]
[404169984,1769896240551,-151.0,0.000243,6]
[404169985,1769896240560,-1858.56,0.0002435,3]
[404169986,1769896240570,-514.91000007,0.0002465,2]
[404169987,1769896240583,-137862.1173044,0.0002465,2]
[404169988,1769896240593,-150.0,0.00024658,2]
[404169989,1769896240603,-336.1071871,0.00024658,2]
[404169990,1769896240614,-2310.01084647,0.00024774,2]
[404169991,1769896240624,-247.13,0.000248,14]
[404169992,1769896240635,-1803.73,0.000248,2]
[404169993,1769896240644,-12999.5471096,0.000249,2]
[404169994,1769896240654,-3000.0,0.00025,2]
[404169995,1769896240664,-3583.19021041,0.00025,2]
[404169996,1769896240674,-4001.00262726,0.00025,2]
[404169997,1769896240683,-3000.0,0.0002501,2]
[404169998,1769896240692,-3000.0,0.0002502,2]
[404169999,1769896240703,-3000.0,0.0002503,2]
[404170000,1769896240712,-3249.8867774,0.0002503,2]
[404170001,1769896240721,-3000.0,0.0002504,2]
[404170002,1769896240730,-3000.0,0.0002505,2]
[404170003,1769896240739,-3000.0,0.0002506,2]
[404170004,1769896240748,-3000.0,0.0002507,2]
[404170005,1769896240758,-3000.0,0.0002508,2]
[404170006,1769896240767,-3000.0,0.0002509,2]
[404170007,1769896240776,-3000.0,0.000251,2]
[404170008,1769896240785,-3000.0,0.0002511,2]
[404170009,1769896240794,-3000.0,0.0002512,2]
[404170010,1769896240803,-3000.0,0.0002513,2]
[404170011,1769896240812,-4057.98584,0.0002514,2]
[404170012,1769896240821,-250.0,0.00025205,2]
[404170013,1769896240832,-160.0,0.00025237,2]
[404170014,1769896240843,-1041.66666667,0.00025237,2]
[404170015,1769896240852,-900.0,0.00025469,3]
[404170016,1769896240863,-1000.0,0.000255,2]
[404170017,1769896240873,-160.0,0.00025671,17]
[404170018,1769896240882,-200.20523241,0.00025753,2]
[404170019,1769896240891,-479.40670863,0.000263,2]
[404170020,1769896240901,-545.608784,0.00026759,2]
[404170021,1769896240916,-189.26016878,0.00027233,2]
[404170022,1769896240926,-1060.3339425,0.00027243,2]
[404170023,1769896240935,-236.5924824,0.00027982,2]
[404170024,1769896240944,-2067.91132435,0.00028315,2]
[404170025,1769896240957,-534.38165304,0.00028316,4]
[404170026,1769896240966,-377.93234195,0.00028316,4]
[404170027,1769896240975,-175.0,0.00028411,29]
[404170028,1769896240984,-3249.8867774,0.0002999,2]
[404170029,1769896240995,-18181.99969639,0.0003,2]
[404170030,1769896241004,-242.81521,0.000305,120]
[404170031,1769896241013,-200.0,0.000305,120]
[404170032,1769896241022,-178.786,0.00030637,26]
[404170033,1769896241041,-330.881,0.00030637,26]
[404170034,1769896241052,-171.83463275,0.00031,120]
[404170035,1769896241062,-164.57044202,0.00031,120]
[404170036,1769896241072,-201.2716677,0.00031,120]
[404170037,1769896241081,-184.3161173,0.00031,120]
[404170038,1769896241091,-206.24088797,0.00031,120]
[404170039,1769896241100,-239.968,0.00031,120]
[404170040,1769896241109,-220.84246738,0.00031,120]
[404170041,1769896241119,-169.9437508,0.00031,120]
[404170042,1769896241128,-203.65,0.00031252,120]
[404170043,1769896241137,-2924.04879561,0.00031322,2]
[404170044,1769896241147,-151.62002564,0.00031382,7]
[404170045,1769896241156,-172.0,0.00031699,48]
[404170046,1769896241165,-171.83463275,0.000319,120]
[404170047,1769896241177,-201.2716677,0.000319,120]
[404170048,1769896241186,-273.8462392,0.00032028,2]
[404170049,1769896241196,-200.0,0.000322,120]
[404170050,1769896241206,-1858.56,0.000327,8]
[404170051,1769896241215,-150.10224934,0.00032876,2]
[404170052,1769896241225,-171.83463275,0.000329,120]
[404170053,1769896241234,-471.60872094,0.000329,2]
[404170054,1769896241243,-1803.73,0.000329,14]
[404170055,1769896241254,-42248.5281062,0.0003299,2]
[404170056,1769896241264,-113374.55241565,0.00033,2]
[404170057,1769896241277,-517025.16087204,0.00033,2]
[404170058,1769896241287,-247.13,0.00033,30]
[404170059,1769896241298,-269.742035,0.00033,31]
[404170060,1769896241308,-269.742035,0.00033,31]
[404170061,1769896241320,-269.742035,0.00033,31]
[404170062,1769896241329,-269.742035,0.00033,31]
[404170063,1769896241339,-151.0,0.00033,31]
[404170064,1769896241349,-151.0,0.00033,31]
[404170065,1769896241360,-328.02,0.00033698,30]
[404170066,1769896241379,-254.56,0.00033786,120]
[404170067,1769896241392,-200.0,0.000339,120]
[404170068,1769896241404,-1896.32290497,0.000343,2]
[404170069,1769896241416,-328.02,0.0003452,31]
[404170070,1769896241427,-510.19747855,0.00034575,5]
[404170071,1769896241438,-312.83,0.00034619,60]
[404170072,1769896241447,-312.83,0.00034719,60]
[404170073,1769896241456,-312.83,0.00034819,60]
[404170074,1769896241465,-312.83,0.00034919,60]
[404170075,1769896241475,-312.83,0.00035019,60]
[404170076,1769896241485,-312.83,0.00035119,60]
[404170077,1769896241494,-312.83,0.00035219,60]
[404170078,1769896241503,-312.83,0.00035319,60]
[404170079,1769896241513,-328.02,0.00035342,32]
[404170080,1769896241522,-151.0,0.00035342,31]
[404170081,1769896241532,-151.0,0.00035342,31]
[404170082,1769896241542,-312.83,0.00035419,60]
[404170083,1769896241551,-312.83,0.00035519,60]
[404170084,1769896241560,-200.0,0.000356,120]
[404170085,1769896241571,-312.83,0.00035619,60]
[404170086,1769896241580,-190.0,0.00035688,120]
[404170087,1769896241589,-312.83,0.00035719,60]
[404170088,1769896241598,-312.83,0.00035819,60]
[404170089,1769896241607,-312.83,0.00035919,60]
[404170090,1769896241617,-312.83,0.00036019,60]
[404170091,1769896241627,-312.83,0.00036119,60]
[404170092,1769896241638,-328.02,0.00036164,33]
[404170093,1769896241648,-205.27402056,0.0003621,2]
[404170094,1769896241658,-312.83,0.00036219,60]
[404170095,1769896241668,-151.05,0.00036222,60]
[404170096,1769896241677,-266.98854847,0.0003624,2]
[404170097,1769896241687,-1803.73,0.000363,14]
[404170098,1769896241696,-150.67,0.00036319,60]
[404170099,1769896241706,-312.83,0.00036319,60]
[404170100,1769896241715,-305.47,0.0003632,120]
[404170101,1769896241725,-151.05,0.00036322,60]
[404170102,1769896241735,-150.67,0.00036419,60]
[404170103,1769896241744,-312.83,0.00036419,60]
[404170104,1769896241754,-151.05,0.00036422,60]
[404170105,1769896241763,-3249.8867774,0.0003649,3]
[404170106,1769896241772,-247.13,0.000365,30]
[404170107,1769896241783,-150.67,0.00036519,60]
[404170108,1769896241793,-312.83,0.00036519,60]
[404170109,1769896241803,-151.05,0.00036522,60]
[404170110,1769896241812,-150.67,0.00036619,60]
[404170111,1769896241822,-312.83,0.00036619,60]
[404170112,1769896241833,-151.05,0.00036622,60]
[404170113,1769896241842,-150.67,0.00036719,60]
[404170114,1769896241852,-312.83,0.00036719,60]
[404170115,1769896241862,-151.05,0.00036722,60]
[404170116,1769896241871,-150.67,0.00036819,60]
[404170117,1769896241881,-312.83,0.00036819,60]
[404170118,1769896241890,-151.05,0.00036822,60]
[404170119,1769896241900,-283.67910947,0.00036868,2]
[404170120,1769896241909,-150.67,0.00036919,60]
[404170121,1769896241919,-312.83,0.00036919,60]
[404170122,1769896241929,-151.05,0.00036922,60]
[404170123,1769896241941,-150.0,0.00036968,30]
[404170124,1769896241952,-328.02,0.00036986,34]
[404170125,1769896241963,-2044.48449799,0.00037,2]
[404170126,1769896241972,-245.0,0.00037002,120]
[404170127,1769896241982,-150.67,0.00037019,60]
[404170128,1769896241993,-312.83,0.00037019,60]
[404170129,1769896242003,-151.05,0.00037022,60]
[404170130,1769896242012,-150.67,0.00037119,60]
[404170131,1769896242022,-312.83,0.00037119,60]
[404170132,1769896242034,-151.05,0.00037122,60]
[404170133,1769896242046,-157.0,0.00037178,97]
[404170134,1769896242056,-150.67,0.00037219,60]
[404170135,1769896242065,-312.83,0.00037219,60]
[404170136,1769896242075,-151.05,0.00037222,60]
[404170137,1769896242085,-352.47268,0.000373,120]
[404170138,1769896242095,-150.67,0.00037319,60]
[404170139,1769896242105,-312.83,0.00037319,60]
[404170140,1769896242116,-151.05,0.00037322,60]
[404170141,1769896242125,-160.61665,0.00037355,31]
[404170142,1769896242135,-269.742035,0.00037355,31]
[404170143,1769896242144,-269.742035,0.00037355,31]
[404170144,1769896242154,-269.742035,0.00037355,31]
[404170145,1769896242164,-269.742035,0.00037355,31]
[404170146,1769896242173,-151.0,0.00037355,31]
[404170147,1769896242182,-151.0,0.00037355,31]